bitfinex/quotes_BTCUSD_20240723
["timestamp","ask_amount","ask_price","bid_price","bid_amount"]
[1721725612042,1.7510926,67026.0,67025.0,0.002]
[1721725612242,1.8510926,67026.0,67025.0,0.002]
[1721725612850,1.75656174,67026.0,67025.0,0.002]
[1721725613106,1.80660231,67026.0,67025.0,0.001]
[1721725613518,1.86660231,67026.0,67025.0,0.002]
[1721725613688,1.81660231,67026.0,67025.0,0.002]
[1721725614300,1.72256174,67026.0,67025.0,0.002]
[1721725614702,0.88669,67016.0,67015.0,0.000924]
[1721725614905,0.99927185,67016.0,67015.0,0.000924]
[1721725615717,1.29770785,67016.0,67015.0,0.000924]
[1721725615923,1.29770785,67016.0,67015.0,0.004924]
[1721725616272,1.2976956,67016.0,67015.0,0.004924]
[1721725616483,1.185126,67016.0,67015.0,0.004924]
[1721725616822,1.20848467,67016.0,67015.0,0.00685323]
[1721725617164,1.32000099,67016.0,67015.0,0.00685323]
[1721725617366,1.20848467,67016.0,67015.0,0.00685323]
[1721725617568,1.31998443,67016.0,67015.0,0.00685323]
[1721725618122,1.02154843,67016.0,67015.0,0.00685323]
[1721725618336,0.523154,67016.0,67015.0,0.00685323]
[1721725618534,0.31391601,67016.0,67015.0,0.00685323]
[1721725618761,0.523154,67016.0,67015.0,0.00685323]
[1721725619116,0.56774966,67016.0,67015.0,0.00685323]
[1721725619398,0.26931366,67016.0,67015.0,0.00685323]
[1721725619595,0.56774966,67016.0,67015.0,0.00685323]
[1721725620364,0.06689349,67018.0,67015.0,0.00685323]
[1721725620570,0.149218,67016.0,67015.0,0.00685323]
[1721725621227,0.149218,67016.0,67015.0,0.00285323]
[1721725621460,0.19381905,67017.0,67015.0,0.00285323]
[1721725621665,0.04460305,67016.0,67015.0,0.15207123]
[1721725621815,0.04460305,67017.0,67015.0,0.15207123]
[1721725622059,0.149211,67019.0,67015.0,0.15207123]
[1721725622262,0.04460946,67017.0,67015.0,0.00585323]
[1721725622426,0.04460946,67017.0,67015.0,0.15507323]
[1721725622627,0.149218,67016.0,67015.0,0.00585323]
[1721725622844,0.149218,67016.0,67015.0,0.00285323]
[1721725623086,0.149218,67016.0,67015.0,0.00485323]
[1721725624218,0.149218,67016.0,67015.0,0.00585323]
[1721725624424,0.149218,67016.0,67015.0,0.00185323]
[1721725624644,0.49226346,67016.0,67015.0,0.00185323]
[1721725624841,0.49226346,67016.0,67015.0,0.00685323]
[1721725625199,0.447654,67016.0,67015.0,0.00685323]
[1721725625398,0.49226608,67016.0,67015.0,0.00685323]
[1721725626635,0.19383008,67016.0,67015.0,0.00685323]
[1721725627219,0.04461208,67016.0,67015.0,0.00685323]
[1721725627423,0.149218,67016.0,67015.0,0.00685323]
[1721725629058,0.447654,67016.0,67015.0,0.00685323]
[1721725630237,0.74609,67016.0,67015.0,0.00685323]
[1721725630445,1.22862959,67016.0,67015.0,0.00685323]
[1721725630682,0.93019359,67016.0,67015.0,0.00685323]
[1721725631096,1.22862959,67016.0,67015.0,0.00685323]
[1721725631301,1.184026,67016.0,67015.0,0.00685323]
[1721725631708,1.27322516,67016.0,67015.0,0.00685323]
[1721725632077,1.25092433,67016.0,67015.0,0.00685323]
[1721725633379,1.184026,67016.0,67015.0,0.00685323]
[1721725633593,1.25092433,67016.0,67015.0,0.00685323]
[1721725634355,0.95248833,67016.0,67015.0,0.00685323]
[1721725634555,0.88559,67016.0,67015.0,0.00685323]
[1721725634957,0.93018104,67016.0,67015.0,0.00685323]
[1721725635157,0.88559,67016.0,67015.0,0.00685323]
[1721725636334,0.149218,67016.0,67015.0,0.00685323]
[1721725636577,0.298428,67018.0,67015.0,0.00685323]
[1721725636857,0.149218,67016.0,67015.0,0.00685323]
[1721725637058,0.0806,67019.0,67015.0,0.00685323]
[1721725637293,0.00239578,67019.0,67015.0,0.00685323]
[1721725637500,0.00239578,67019.0,67018.0,0.210213]
[1721725637787,0.00239578,67019.0,67018.0,0.50864]
[1721725638379,0.00239578,67019.0,67018.0,0.807067]
[1721725638579,0.00239578,67019.0,67018.0,1.05608691]
[1721725638782,0.00239578,67019.0,67018.0,1.55451391]
[1721725639121,0.00239578,67019.0,67018.0,1.85294091]
[1721725639400,0.00239578,67019.0,67018.0,1.55451391]
[1721725640015,0.4696,67038.0,67037.0,0.149171]
[1721725640253,0.00092379,67040.0,67036.0,0.0666]
[1721725640463,0.00092379,67038.0,67033.0,0.1453]
[1721725640677,0.00092379,67040.0,67036.0,0.149172]
[1721725640850,0.35063186,67043.0,67033.0,0.443659]
[1721725641052,0.15008879,67040.0,67037.0,0.149171]
[1721725641283,0.149167,67039.0,67034.0,0.298354]
[1721725641396,0.07348942,67039.0,67033.0,0.215479]
[1721725641608,0.149171,67037.0,67036.0,0.001]
[1721725641805,0.149171,67037.0,67033.0,0.0663]
[1721725642499,0.149171,67037.0,67028.0,0.0629]
[1721725642500,0.10625012,67036.0,67028.0,0.0629]
[1721725642690,0.10625012,67036.0,67019.0,0.44543891]
[1721725642691,0.32170212,67035.0,67023.0,0.0629]
[1721725642896,0.14918,67033.0,67023.0,0.0629]
[1721725643099,0.14918,67033.0,67028.0,0.149189]
[1721725643245,0.14918,67033.0,67027.0,0.298386]
[1721725643443,0.149167,67039.0,67035.0,0.0665]
[1721725643799,0.149171,67037.0,67035.0,0.0665]
[1721725643955,0.02335022,67038.0,67032.0,0.0665]
[1721725643956,0.17252322,67036.0,67032.0,0.0665]
[1721725644162,0.07348942,67040.0,67032.0,0.0665]
[1721725644362,0.149171,67037.0,67032.0,0.0665]
[1721725644567,0.002,67033.0,67032.0,0.215681]
[1721725644985,0.149173,67036.0,67032.0,0.215681]
[1721725645200,0.149173,67036.0,67035.0,0.149175]
[1721725645201,0.005,67036.0,67035.0,0.149175]
[1721725645601,0.005,67040.0,67039.0,0.149166]
[1721725645775,0.005,67040.0,67039.0,0.447499]
[1721725645990,0.00084,67041.0,67040.0,0.447493]
[1721725646190,0.00084,67041.0,67040.0,0.212064]
[1721725646805,0.00084,67041.0,67040.0,0.510393]
[1721725647088,0.00084,67041.0,67040.0,0.212064]
[1721725647299,0.00084,67041.0,67040.0,0.0629]
[1721725647500,0.00084,67041.0,67040.0,0.212064]
[1721725647723,0.00484,67041.0,67040.0,0.212064]
[1721725647926,0.00484,67041.0,67035.0,0.214775]
[1721725648248,0.00484,67041.0,67036.0,0.149173]
[1721725648249,0.00092379,67039.0,67036.0,0.149173]
[1721725648662,0.15009079,67039.0,67035.0,0.0656]
[1721725648859,0.149178,67034.0,67029.0,0.149189]
[1721725649057,0.298367,67032.0,67028.0,0.0623]
[1721725649220,0.07348942,67033.0,67028.0,0.21149]
[1721725649221,0.22267042,67033.0,67028.0,0.21149]
[1721725649426,0.07348942,67033.0,67030.0,0.149185]
[1721725649622,0.07348942,67033.0,67028.0,0.360678]
[1721725649961,0.149174,67036.0,67031.0,0.149183]
[1721725650171,0.001,67034.0,67031.0,0.149183]
[1721725650350,0.150178,67034.0,67029.0,0.157188]
[1721725650752,0.001,67034.0,67030.0,0.149186]
[1721725650978,0.001,67034.0,67030.0,0.298373]
[1721725651177,0.001,67034.0,67032.0,0.149181]
[1721725651976,0.149171,67038.0,67030.0,0.298373]
[1721725652180,0.149171,67038.0,67030.0,0.004]
[1721725652181,0.298342,67038.0,67030.0,0.004]
[1721725652387,0.001,67033.0,67032.0,0.149182]
[1721725652593,0.001,67033.0,67032.0,0.447546]
[1721725652802,0.001,67033.0,67032.0,0.586646]
[1721725653004,0.00092379,67039.0,67035.0,0.298349]
[1721725653210,0.149164,67040.0,67035.0,0.298349]
[1721725653454,0.00092379,67039.0,67035.0,0.149175]
[1721725653650,0.149164,67040.0,67036.0,0.149172]
[1721725653965,0.00092379,67039.0,67037.0,0.149171]
[1721725654107,0.00092379,67040.0,67037.0,0.149171]
[1721725654305,0.149166,67039.0,67036.0,0.149173]
[1721725654495,0.00092379,67040.0,67036.0,0.149173]
[1721725654496,0.149165,67040.0,67036.0,0.149173]
[1721725654704,0.15009079,67039.0,67036.0,0.149173]
[1721725654935,0.008,67039.0,67036.0,0.149173]
[1721725655146,0.34374998,67041.0,67035.0,0.002]
[1721725655348,0.149173,67036.0,67035.0,0.002]
[1721725655857,0.149177,67035.0,67030.0,0.213985]
[1721725656104,0.149176,67035.0,67030.0,0.213985]
[1721725656668,0.298354,67035.0,67030.0,0.0648]
[1721725656871,0.298354,67035.0,67027.0,0.0779]
[1721725656872,0.149181,67033.0,67028.0,0.14919]
[1721725657053,0.149182,67032.0,67028.0,0.14919]
[1721725657252,0.14918,67033.0,67028.0,0.14919]
[1721725657496,0.14918,67033.0,67029.0,0.149188]
[1721725657859,0.14918,67033.0,67028.0,0.149191]
[1721725658055,0.14918,67033.0,67029.0,0.149189]
[1721725658374,0.149182,67032.0,67027.0,0.287092]
[1721725658578,0.298362,67033.0,67028.0,0.149191]
[1721725658754,0.149182,67032.0,67030.0,0.005]
[1721725659336,0.149182,67032.0,67029.0,0.003]
[1721725659647,0.001,67032.0,67029.0,0.003]
[1721725660284,0.14918,67033.0,67028.0,0.149191]
[1721725660706,0.14918,67033.0,67029.0,0.11286563]
[1721725660904,0.14918,67033.0,67028.0,0.150191]
[1721725661144,0.149182,67032.0,67028.0,0.149191]
[1721725661440,0.150182,67032.0,67029.0,0.11281575]
[1721725661619,0.150182,67032.0,67028.0,0.149191]
[1721725661940,0.149171,67037.0,67033.0,0.149179]
[1721725662118,0.002,67033.0,67032.0,0.149181]
[1721725662318,0.002,67033.0,67032.0,0.447545]
[1721725662521,0.002,67033.0,67032.0,0.56046888]
[1721725662720,0.002,67033.0,67032.0,0.11292388]
[1721725662921,0.002,67033.0,67030.0,0.298371]
[1721725663123,0.002,67033.0,67031.0,0.11317784]
[1721725663445,0.002,67033.0,67032.0,0.11317801]
[1721725663672,0.149176,67035.0,67032.0,0.11317801]
[1721725664060,0.149176,67035.0,67033.0,0.11317801]
[1721725664213,0.149176,67035.0,67032.0,0.005]
[1721725664414,0.149176,67035.0,67033.0,0.11390404]
[1721725664623,0.149173,67036.0,67034.0,0.11390404]
[1721725664842,0.149173,67036.0,67035.0,0.11390404]
[1721725665007,0.149172,67037.0,67035.0,0.11390404]
[1721725665209,0.149172,67037.0,67033.0,0.149179]
[1721725665454,0.149172,67037.0,67034.0,0.11388248]
[1721725665701,0.149172,67037.0,67035.0,0.11388248]
[1721725665892,0.149172,67037.0,67036.0,0.11388248]
[1721725666498,0.298337,67039.0,67036.0,0.11388248]
[1721725666629,0.15009279,67038.0,67037.0,0.11388248]
[1721725666829,0.149169,67038.0,67037.0,0.11388248]
[1721725667028,0.149173,67037.0,67032.0,0.149182]
[1721725667275,0.149173,67037.0,67036.0,0.001]
[1721725667551,0.447515,67037.0,67036.0,0.11432674]
[1721725667752,0.152173,67037.0,67036.0,0.11432674]
[1721725668498,0.149173,67037.0,67036.0,0.11332674]
[1721725668904,0.153173,67037.0,67036.0,0.11332674]
[1721725669507,0.153173,67037.0,67036.0,0.11432674]
[1721725669707,0.17652184,67037.0,67036.0,0.11432674]
[1721725669927,0.17652184,67037.0,67036.0,0.11332674]
[1721725670141,0.17252184,67037.0,67033.0,0.149179]
[1721725670340,0.149173,67037.0,67034.0,0.11303994]
[1721725670559,0.149173,67036.0,67035.0,0.11303994]
[1721725670775,0.02334861,67036.0,67035.0,0.11303994]
[1721725671221,0.47086861,67036.0,67035.0,0.11303994]
[1721725672061,0.17252161,67036.0,67035.0,0.11303994]
[1721725673029,0.17252161,67036.0,67035.0,0.11503994]
[1721725673501,0.17252161,67036.0,67035.0,0.11539957]
[1721725673695,0.17252161,67036.0,67035.0,0.17759957]
[1721725674175,0.02534861,67036.0,67035.0,0.17759957]
[1721725674424,0.17452161,67036.0,67035.0,0.17759957]
[1721725674647,0.17536161,67036.0,67035.0,0.17759957]
[1721725675529,0.21997384,67036.0,67035.0,0.17759957]
[1721725676563,0.47370861,67036.0,67035.0,0.0642]
[1721725676761,0.77205561,67036.0,67035.0,0.11581875]
[1721725676964,1.02776474,67036.0,67035.0,0.11581875]
[1721725677301,1.02777477,67036.0,67035.0,0.11569987]
[1721725677434,1.02777477,67036.0,67035.0,0.002]
[1721725677435,0.91615561,67036.0,67035.0,0.002]
[1721725677632,1.21450261,67036.0,67035.0,0.002]
[1721725678044,1.65986952,67036.0,67035.0,0.002]
[1721725679229,0.149204,67023.0,67019.0,0.000924]
[1721725679439,0.26192722,67022.0,67020.0,0.11389745]
[1721725679649,0.447627,67020.0,67019.0,0.000924]
[1721725679846,0.447627,67020.0,67019.0,0.11482251]
[1721725680048,0.76939885,67020.0,67019.0,0.11482251]
[1721725680453,0.76939885,67020.0,67019.0,0.000924]
[1721725681405,1.06781685,67020.0,67019.0,0.000924]
[1721725681596,1.06781685,67020.0,67019.0,0.006924]
[1721725681597,1.35153676,67020.0,67019.0,0.006924]
[1721725681797,1.64995476,67020.0,67019.0,0.013924]
[1721725682001,1.80083497,67020.0,67019.0,0.013924]
[1721725682206,1.64995476,67020.0,67019.0,0.013924]
[1721725682533,1.64995476,67020.0,67019.0,0.006924]
[1721725682801,1.65095476,67020.0,67019.0,0.016924]
[1721725683212,1.74995476,67020.0,67019.0,0.006924]
[1721725683551,2.19837276,67020.0,67019.0,0.006924]
[1721725683773,2.19837276,67020.0,67019.0,0.000924]
[1721725683774,2.27513822,67020.0,67019.0,0.000924]
[1721725683995,2.45543822,67020.0,67019.0,0.000924]
[1721725684202,2.75785622,67020.0,67019.0,0.000924]
[1721725684411,2.90481887,67020.0,67019.0,0.000924]
[1721725684617,2.75785622,67020.0,67019.0,1e-06]
[1721725684826,1.948698,67016.0,67011.0,0.000924]
[1721725685046,2.68413722,67016.0,67011.0,0.000924]
[1721725685659,2.60637176,67016.0,67011.0,0.000924]
[1721725686078,2.68346435,67016.0,67011.0,0.000924]
[1721725687362,2.69564515,67016.0,67015.0,0.00085323]
[1721725687769,2.70964515,67016.0,67015.0,0.00085323]
[1721725687969,2.8426078,67016.0,67015.0,0.00085323]
[1721725688174,1.948797,67012.0,67011.0,0.000924]
[1721725688349,2.35757076,67012.0,67011.0,0.000924]
[1721725688788,2.38057076,67012.0,67011.0,0.000924]
[1721725689742,2.39457076,67012.0,67011.0,0.000924]
[1721725689944,0.7464,66988.0,66987.0,0.000924]
[1721725690943,1.04496,66988.0,66987.0,0.000924]
[1721725691945,1.04996,66988.0,66987.0,0.000924]
[1721725693210,1.19697991,66988.0,66987.0,0.000924]
[1721725693421,1.19197991,66988.0,66987.0,0.000924]
[1721725693647,1.19697991,66988.0,66987.0,0.000924]
[1721725694087,1.24014611,66988.0,66987.0,0.000924]
[1721725694290,1.31574611,66988.0,66987.0,0.000924]
[1721725694510,1.33657991,66988.0,66987.0,0.000924]
[1721725695237,1.73513991,66988.0,66987.0,0.000924]
[1721725695445,1.68513991,66988.0,66987.0,0.000924]
[1721725695645,1.63513991,66988.0,66987.0,0.000924]
[1721725696267,1.7307885,66988.0,66987.0,0.000924]
[1721725697744,2.3366485,66988.0,66987.0,0.000924]
[1721725697959,2.3096485,66988.0,66987.0,0.000924]
[1721725698101,2.4096485,66988.0,66987.0,0.000924]
[1721725699315,2.4616485,66988.0,66987.0,0.000924]
[1721725699523,2.3616485,66988.0,66987.0,0.000924]
[1721725699930,1.9580885,66988.0,66987.0,0.000924]
[1721725700101,1.86243991,66988.0,66987.0,0.000924]
[1721725700321,2.08533991,66988.0,66987.0,0.000924]
[1721725701858,2.13533991,66988.0,66987.0,0.000924]
[1721725702291,2.08533991,66988.0,66987.0,0.000924]
[1721725702483,2.23230256,66988.0,66987.0,0.000924]
[1721725704601,2.28230256,66988.0,66987.0,0.000924]
[1721725705815,2.28230256,66988.0,66987.0,0.00085855]
[1721725707629,2.13533991,66988.0,66987.0,0.00085855]
[1721725708499,2.18533991,66988.0,66987.0,0.00085855]
[1721725708702,2.13533991,66988.0,66987.0,0.00085855]
[1721725710209,2.01233991,66988.0,66987.0,0.00085855]
[1721725710417,2.02803991,66988.0,66987.0,0.00085855]
[1721725710627,2.12500256,66988.0,66987.0,0.00085855]
[1721725711407,2.19927535,66988.0,66987.0,0.00085855]
[1721725712692,2.24927535,66988.0,66987.0,0.00085855]
[1721725713467,2.27264826,66988.0,66987.0,0.00085855]
[1721725713808,2.14837547,66988.0,66987.0,0.00085855]
[1721725714021,2.22229977,66988.0,66987.0,0.00085855]
[1721725714209,2.27229977,66988.0,66987.0,0.00085855]
[1721725714417,2.22229977,66988.0,66987.0,0.00085855]
[1721725716221,2.27229977,66988.0,66987.0,0.00085855]
[1721725716541,2.22229977,66988.0,66987.0,0.00085855]
[1721725717185,2.22253124,66988.0,66987.0,0.00085855]
[1721725717810,2.27253124,66988.0,66987.0,0.00085855]
[1721725720168,2.06907547,66988.0,66987.0,0.00085855]
[1721725720397,2.14276184,66988.0,66987.0,0.00085855]
[1721725721780,2.30006184,66988.0,66987.0,0.00085855]
[1721725721998,2.59862184,66988.0,66987.0,0.00085855]
[1721725722318,2.69862184,66988.0,66987.0,0.00085855]
[1721725723405,2.69662184,66988.0,66987.0,0.00085855]
[1721725723597,2.73270493,66988.0,66987.0,0.00085855]
[1721725723799,2.73770515,66988.0,66987.0,0.00085855]
[1721725723971,2.75170515,66988.0,66987.0,0.00085855]
[1721725724171,2.73770515,66988.0,66987.0,0.00085855]
[1721725724435,2.75497536,66988.0,66987.0,0.00085855]
[1721725724637,2.78097536,66988.0,66987.0,0.00085855]
[1721725725776,2.82551578,66988.0,66987.0,0.00085855]
[1721725725978,2.71416474,66988.0,66987.0,0.00085855]
[1721725726332,2.66416474,66988.0,66987.0,0.00085855]
[1721725726541,2.17876635,66988.0,66987.0,0.00085855]
[1721725726756,2.26536635,66988.0,66987.0,0.00085855]
[1721725726964,2.15380122,66988.0,66987.0,0.00085855]
[1721725727509,2.20380122,66988.0,66987.0,0.00085855]
[1721725727632,2.35076387,66988.0,66987.0,0.00085855]
[1721725727832,2.64932387,66988.0,66987.0,0.00085855]
[1721725729103,2.30076387,66988.0,66987.0,0.00085855]
[1721725729304,2.22516387,66988.0,66987.0,0.00085855]
[1721725729520,1.9421268,66988.0,66987.0,0.00085855]
[1721725729735,1.3132668,66988.0,66987.0,0.14325855]
[1721725729946,1.3998668,66988.0,66987.0,0.14325855]
[1721725730142,1.3132668,66988.0,66987.0,0.14325855]
[1721725731451,1.44739248,66988.0,66987.0,0.14325855]
[1721725731657,1.58047119,66988.0,66987.0,0.14325855]
[1721725732012,1.44739248,66988.0,66987.0,0.14325855]
[1721725732409,1.3132668,66988.0,66987.0,0.14325855]
[1721725732610,1.31521891,66988.0,66987.0,0.14325855]
[1721725732811,1.24135282,66988.0,66987.0,0.14325855]
[1721725733468,1.22935282,66988.0,66987.0,0.14325855]
[1721725733846,1.38387347,66988.0,66987.0,0.14325855]
[1721725734244,1.37187347,66988.0,66987.0,0.14325855]
[1721725734445,1.5061116,66988.0,66987.0,0.14325855]
[1721725734641,1.5111116,66988.0,66987.0,0.14325855]
[1721725734908,1.4971116,66988.0,66987.0,0.14325855]
[1721725735234,1.5061116,66988.0,66987.0,0.14325855]
[1721725735438,1.37187347,66988.0,66987.0,0.14325855]
[1721725736960,1.22935282,66988.0,66987.0,0.14325855]
[1721725737381,1.38047898,66988.0,66987.0,0.14325855]
[1721725738352,1.22935282,66988.0,66987.0,0.14325855]
[1721725744182,1.22935282,66988.0,66987.0,0.00085855]
[1721725748640,1.22935282,66988.0,66987.0,0.07895855]
[1721725749953,1.22880513,66988.0,66987.0,0.07895855]
[1721725752369,1.31530513,66988.0,66987.0,0.07895855]
[1721725753111,1.44772912,66988.0,66987.0,0.00085855]
[1721725754749,1.31530513,66988.0,66987.0,0.00085855]
[1721725755164,1.31503181,66988.0,66987.0,0.00085855]
[1721725755366,1.31503181,66988.0,66987.0,0.07775855]
[1721725755927,1.31503181,66988.0,66987.0,0.00085855]
[1721725761488,1.61359181,66988.0,66987.0,0.00085855]
[1721725761689,1.66359181,66988.0,66987.0,0.00085855]
[1721725761891,2.00923819,66988.0,66987.0,0.00085855]
[1721725762093,1.86227554,66988.0,66987.0,0.00085855]
[1721725762293,1.91171653,66988.0,66987.0,0.00085855]
[1721725762621,2.01171653,66988.0,66987.0,0.00085855]
[1721725763306,2.03471653,66988.0,66987.0,0.00085855]
[1721725763852,2.33327653,66988.0,66987.0,0.00085855]
[1721725764241,2.03471653,66988.0,66987.0,0.00085855]
[1721725764445,1.98430109,66988.0,66987.0,0.00085855]
[1721725764724,1.78110109,66988.0,66987.0,0.00085855]
[1721725765122,1.78199499,66988.0,66987.0,0.00085855]
[1721725766215,1.71359181,66988.0,66987.0,0.00085855]
[1721725766836,1.71359181,66988.0,66987.0,0.06085855]
[1721725766837,1.31503181,66988.0,66987.0,0.06085855]
[1721725767461,1.31503181,66988.0,66987.0,0.13675855]
[1721725768093,1.46620399,66988.0,66987.0,0.13675855]
[1721725769142,0.03737291,66988.0,66987.0,0.13675855]
[1721725769351,0.03737291,66988.0,66987.0,0.28604055]
[1721725769554,0.03737291,66988.0,66987.0,0.70479708]
[1721725769752,0.03737291,66988.0,66987.0,1.00336208]
[1721725769975,0.1493295,66988.0,66987.0,1.30192708]
[1721725770181,0.009,66988.0,66987.0,1.00336208]
[1721725770380,0.09856169,66988.0,66987.0,1.00336208]
[1721725770590,0.149267,66994.0,66993.0,0.0618]
[1721725770797,0.149267,66994.0,66993.0,0.18582442]
[1721725770798,0.47116473,66994.0,66993.0,0.18582442]
[1721725771007,0.47116473,66994.0,66993.0,0.18925979]
[1721725771159,0.17263073,66994.0,66993.0,0.18925979]
[1721725772368,0.47116473,66994.0,66993.0,0.18925979]
[1721725772568,1.06823273,66994.0,66993.0,0.18925979]
[1721725772770,1.044946,66989.0,66988.0,0.0793]
[1721725773019,1.15480973,66989.0,66988.0,0.0793]
[1721725773574,0.85625373,66989.0,66988.0,0.1394]
[1721725773782,1.15480973,66989.0,66988.0,0.1394]
[1721725774185,1.30282964,66989.0,66988.0,0.0631]
[1721725774314,1.43709014,66989.0,66988.0,0.0631]
[1721725774715,1.60211003,66989.0,66988.0,0.006]
[1721725774915,1.68361003,66989.0,66988.0,0.006]
[1721725775119,1.68261003,66989.0,66988.0,0.003]
[1721725776198,1.04496,66988.0,66987.0,0.00085855]
[1721725776350,1.21534364,66988.0,66987.0,0.00085855]
[1721725777005,1.71086629,66988.0,66987.0,0.00085855]
[1721725777343,1.51390364,66988.0,66987.0,0.00085855]
[1721725777755,1.22134364,66988.0,66987.0,0.00085855]
[1721725778345,1.22234364,66988.0,66987.0,0.00085855]
[1721725779151,1.22234364,66988.0,66987.0,0.14645855]
[1721725780915,1.22234364,66988.0,66987.0,0.06545855]
[1721725781117,1.22234364,66988.0,66987.0,0.00085855]
[1721725791441,1.37344071,66988.0,66987.0,0.00085855]
[1721725791641,1.37343995,66988.0,66987.0,0.00085855]
[1721725792463,1.37344013,66988.0,66987.0,0.00085855]
[1721725794014,1.22234364,66988.0,66987.0,0.00085855]
[1721725794944,1.22234364,66988.0,66987.0,0.08385855]
[1721725798233,1.30884364,66988.0,66987.0,0.08385855]
[1721725803017,1.30884364,66988.0,66987.0,0.14525855]
[1721725803018,0.03036373,66988.0,66987.0,0.14525855]
[1721725803224,0.03036373,66988.0,66987.0,0.4185859]
[1721725803454,0.03036373,66988.0,66987.0,0.72061682]
[1721725803664,0.03036373,66988.0,66987.0,0.42205182]
[1721725804128,0.03036373,66988.0,66987.0,0.27276982]
[1721725804129,0.92378364,66988.0,66987.0,0.27276982]
[1721725804334,0.92378364,66988.0,66987.0,0.00432447]
[1721725804335,1.22234364,66988.0,66987.0,0.00432447]
[1721725805447,1.22234364,66988.0,66987.0,0.00085855]
[1721725805657,0.77676373,66988.0,66987.0,0.08035855]
[1721725805863,0.77676373,66988.0,66987.0,0.14335855]
[1721725806083,0.77676373,66988.0,66987.0,0.14680083]
[1721725806284,0.47820373,66988.0,66987.0,0.14680083]
[1721725806708,0.31392888,66988.0,66987.0,0.14680083]
[1721725806953,0.17964373,66988.0,66987.0,0.2708471]
[1721725807177,0.17964373,66988.0,66987.0,0.27084498]
[1721725807378,0.77676373,66988.0,66987.0,0.27084498]
[1721725807682,0.17964373,66988.0,66987.0,0.27084498]
[1721725808068,0.17964373,66988.0,66987.0,0.270843]
[1721725808262,0.03036373,66988.0,66987.0,0.270843]
[1721725808922,0.17964373,66988.0,66987.0,0.270843]
[1721725809087,0.17964373,66988.0,66987.0,0.14680083]
[1721725809300,0.31392228,66988.0,66987.0,0.14680083]
[1721725809508,0.31392228,66988.0,66987.0,0.27084487]
[1721725809668,0.16464228,66988.0,66987.0,0.27084487]
[1721725810086,0.03036373,66988.0,66987.0,0.27084487]
[1721725810285,0.03036373,66988.0,66987.0,0.42012687]
[1721725810755,0.03036373,66988.0,66987.0,1.01725687]
[1721725810921,0.03036373,66988.0,66987.0,0.71869187]
[1721725811127,0.03036373,66988.0,66987.0,0.89321283]
[1721725811389,0.25417268,66988.0,66987.0,1.01724574]
[1721725811842,0.14226848,66988.0,66987.0,1.01724574]
[1721725812193,0.14226848,66988.0,66987.0,1.31581074]
[1721725812399,0.11890475,66988.0,66987.0,1.40231074]
[1721725812641,0.11890475,66988.0,66987.0,1.89789565]
[1721725812834,0.11890475,66988.0,66987.0,2.10764765]
[1721725813013,0.11890475,66988.0,66987.0,2.28064765]
[1721725813419,0.08951753,67001.0,66997.0,0.05]
[1721725813420,0.04475806,67001.0,66997.0,0.05]
[1721725813618,0.04475806,67009.0,67008.0,0.447706]
[1721725813840,0.201424,67013.0,67008.0,0.447706]
[1721725813841,0.04475806,67013.0,67012.0,0.596908]
[1721725814017,0.04475806,67019.0,67018.0,0.746067]
[1721725814228,0.149185,67031.0,67012.0,0.14701991]
[1721725814436,0.00084,67036.0,67012.0,0.14701991]
[1721725814437,0.58125362,67028.0,67027.0,0.44758]
[1721725814647,0.00084,67036.0,67027.0,0.58898]
[1721725814648,0.06698527,67030.0,67027.0,0.58898]
[1721725814858,0.04465613,67028.0,67027.0,0.290593]
[1721725815071,0.06698527,67031.0,67030.0,0.149186]
[1721725815282,0.04460406,67034.0,67030.0,0.298373]
[1721725815492,0.04460406,67034.0,67032.0,0.14918]
[1721725815704,0.04460406,67034.0,67033.0,0.14918]
[1721725815924,0.04544406,67036.0,67035.0,0.149175]
[1721725816141,0.04544406,67036.0,67035.0,0.586326]
[1721725816142,0.00084,67036.0,67035.0,0.586326]
[1721725816376,0.00084,67036.0,67035.0,0.884677]
[1721725817579,0.00384,67036.0,67035.0,0.884677]
[1721725817996,0.00084,67036.0,67035.0,0.586326]
[1721725818191,0.00084,67036.0,67035.0,0.884677]
[1721725819392,0.00084,67036.0,67035.0,0.287975]
[1721725819593,0.00184,67036.0,67035.0,0.586326]
[1721725819801,0.00184,67036.0,67035.0,0.588326]
[1721725820173,0.00184,67036.0,67035.0,0.1408]
[1721725820623,0.00184,67036.0,67035.0,0.289975]
[1721725820804,0.00184,67036.0,67035.0,0.588326]
[1721725821252,0.00184,67036.0,67035.0,0.1408]
[1721725821807,0.00184,67036.0,67035.0,0.588326]
[1721725822008,0.00184,67036.0,67035.0,1.33204791]
[1721725822636,0.00184,67036.0,67035.0,1.38204791]
[1721725822845,0.00184,67036.0,67035.0,1.48204791]
[1721725825750,0.00184,67036.0,67035.0,1.43204791]
[1721725826742,0.00184,67036.0,67035.0,1.48204791]
[1721725827728,0.00184,67036.0,67035.0,1.43905406]
[1721725827922,0.00084,67036.0,67035.0,1.43905406]
[1721725828891,0.00184,67036.0,67035.0,1.44305406]
[1721725830065,0.00284,67036.0,67035.0,1.44805406]
[1721725832799,0.00284,67036.0,67035.0,1.84640506]
[1721725833029,0.00284,67036.0,67035.0,1.86940506]
[1721725833407,0.00284,67036.0,67035.0,1.44805406]
[1721725834396,0.00184,67036.0,67035.0,1.44405406]
[1721725834528,0.00084,67036.0,67035.0,1.49881606]
[1721725834738,0.00084,67036.0,67035.0,1.50681606]
[1721725834969,0.00156611,67036.0,67035.0,1.50681606]
[1721725835125,0.00156611,67036.0,67035.0,1.49881606]
[1721725835721,0.00256611,67036.0,67035.0,1.50681606]
[1721725836406,0.00156611,67036.0,67035.0,1.49881606]
[1721725836907,0.00256611,67036.0,67035.0,1.51281606]
[1721725837112,0.00356611,67036.0,67035.0,1.16870306]
[1721725837240,0.00256611,67036.0,67035.0,1.15470306]
[1721725837474,0.51048611,67036.0,67035.0,0.014]
[1721725837670,0.58297553,67036.0,67035.0,0.014]
[1721725837879,0.28462853,67036.0,67035.0,0.014]
[1721725838072,0.58397553,67036.0,67035.0,0.028]
[1721725838509,0.58297553,67036.0,67035.0,0.014]
[1721725838732,0.88132253,67036.0,67035.0,0.014]
[1721725838930,0.58297553,67036.0,67035.0,0.019]
[1721725839209,0.58297553,67036.0,67035.0,0.005]
[1721725839210,0.00056611,67036.0,67035.0,0.005]
[1721725839409,0.00056611,67036.0,67035.0,0.154175]